fUST/lending_fUST_20241217
["ID","MTS","AMOUNT","RATE_DAILY","PERIOD"]
[345685583,1734424257806,-500.0,0.00025479,6]
[345685584,1734424257815,-500.0,0.00025479,6]
[345685586,1734424257824,-1887.89,0.00025479,6]
[345685588,1734424257833,-930.43,0.00025479,6]
[345685589,1734424257843,-500.0,0.00025479,6]
[345685591,1734424257852,-500.0,0.00025479,6]
[345685593,1734424257862,-1000.0,0.00025479,2]
[345685594,1734424257871,-500.0,0.00025479,6]
[345685596,1734424257880,-500.0,0.00025479,6]
[345685598,1734424257890,-500.0,0.00025479,6]
[345685599,1734424257899,-2642.26,0.00025479,6]
[345685601,1734424257908,-433.0498825,0.00025479,6]
[345685603,1734424257917,-870.14,0.00025479,6]
[345685604,1734424257927,-1026.18,0.00025479,6]
[345685606,1734424257936,-648.52,0.00025479,6]
[345685608,1734424257945,-500.0,0.00025479,6]
[345685609,1734424257955,-649.44,0.00025479,2]
[345685611,1734424257964,-500.0,0.00025479,6]
[345685613,1734424257974,-500.0,0.00025479,6]
[345685614,1734424257983,-500.0,0.00025479,6]
[345685616,1734424257993,-500.0,0.00025479,6]
[345685618,1734424258003,-500.0,0.00025479,6]
[345685619,1734424258012,-6832.57,0.00025479,6]
[345685621,1734424258022,-2768.81,0.00025479,6]
[345685623,1734424258031,-500.0,0.00025479,6]
[345685624,1734424258040,-500.0,0.00025479,6]
[345685626,1734424258050,-1817.43,0.00025479,6]
[345685628,1734424258059,-500.0,0.00025479,6]
[345685629,1734424258069,-500.0,0.00025479,6]
[345685631,1734424258078,-7526.42,0.00025479,6]
[345685632,1734424258087,-500.0,0.00025479,6]
[345685634,1734424258097,-500.0,0.00025479,6]
[345685636,1734424258106,-794.02,0.00025479,6]
[345685637,1734424258116,-6481.57,0.00025479,6]
[345685639,1734424258126,-10373.72,0.00025479,6]
[345685641,1734424258135,-1239.75,0.00025479,6]
[345685642,1734424258144,-500.0,0.00025479,6]
[345685644,1734424258153,-1765.9,0.00025479,6]
[345685646,1734424258163,-1201.5,0.00025479,6]
[345685647,1734424258173,-783.27,0.00025479,6]
[345685649,1734424258182,-3000.0,0.00025479,30]
[345685651,1734424258192,-312.39562004,0.00025479,6]
[345685652,1734424258201,-1019.66,0.00025479,6]
[345685654,1734424258211,-534.42,0.00025479,6]
[345685656,1734424258221,-1653.2,0.00025479,6]
[345685657,1734424258231,-1412.43,0.00025479,6]
[345685659,1734424258241,-500.0,0.00025479,6]
[345685661,1734424258252,-500.0,0.00025479,6]
[345685662,1734424258263,-1778.41,0.00025479,5]
[345685664,1734424258273,-500.0,0.00025479,6]
[345685666,1734424258283,-500.0,0.00025479,6]
[345685667,1734424258294,-500.0,0.00025479,6]
[345685669,1734424258303,-3387.78,0.00025479,6]
[345685671,1734424258313,-1002.59,0.00025479,6]
[345685672,1734424258322,-1704.13,0.00025479,6]
[345685674,1734424258331,-500.0,0.00025479,6]
[345685676,1734424258341,-500.0,0.00025479,6]
[345685677,1734424258350,-500.0,0.00025479,6]
[345685679,1734424258360,-500.0,0.00025479,6]
[345685681,1734424258370,-500.0,0.00025479,6]
[345685682,1734424258379,-568.90921692,0.00025479,6]
[345685684,1734424258389,-500.0,0.00025479,6]
[345685686,1734424258399,-33732.24,0.00025479,6]
[345685688,1734424258408,-3709.48,0.00025479,6]
[345685689,1734424258417,-500.0,0.00025479,6]
[345685691,1734424258426,-500.0,0.00025479,6]
[345685692,1734424258436,-500.0,0.00025479,6]
[345685694,1734424258446,-500.0,0.00025479,6]
[345685696,1734424258455,-500.0,0.00025479,6]
[345685697,1734424258464,-1705.57,0.00025479,6]
[345685699,1734424258474,-500.0,0.00025479,6]
[345685701,1734424258484,-500.0,0.00025479,6]
[345685703,1734424258493,-1836.6,0.00025479,6]
[345685705,1734424258503,-704.62,0.00025479,6]
[345685707,1734424258512,-979.48,0.00025479,6]
[345685709,1734424258522,-500.0,0.00025479,6]
[345685710,1734424258531,-500.0,0.00025479,6]
[345685711,1734424258541,-500.0,0.00025479,6]
[345685712,1734424258550,-4330.72,0.00025479,6]
[345685713,1734424258561,-414.93667516,0.00025479,6]
[345685714,1734424258570,-500.0,0.00025479,6]
[345685715,1734424258580,-610.85,0.00025479,6]
[345685716,1734424258589,-500.0,0.00025479,6]
[345685717,1734424258598,-500.0,0.00025479,6]
[345685718,1734424258608,-500.0,0.00025479,6]
[345685719,1734424258617,-2529.02,0.00025479,6]
[345685720,1734424258626,-1079.08,0.00025479,6]
[345685721,1734424258635,-500.0,0.00025479,6]
[345685722,1734424258644,-500.0,0.00025479,6]
[345685723,1734424258653,-2543.43,0.00025479,6]
[345685724,1734424258669,-351.16309316,0.00025479,6]
[345685725,1734424258678,-500.0,0.00025479,6]
[345685726,1734424258687,-530.48,0.00025479,6]
[345685727,1734424258696,-4978.04,0.00025479,6]
[345685729,1734424258708,-500.0,0.00025479,6]
[345685730,1734424258717,-500.0,0.00025479,6]
[345685732,1734424258726,-500.0,0.00025479,6]
[345685733,1734424258737,-500.0,0.00025479,6]
[345685736,1734424258747,-500.0,0.00025479,6]
[345685737,1734424258757,-500.0,0.00025479,6]
[345685739,1734424258766,-1782.0,0.00025479,6]
[345685741,1734424258776,-637.23,0.00025479,6]
[345685743,1734424258785,-500.0,0.00025479,6]
[345685745,1734424258794,-1595.65,0.00025479,6]
[345685747,1734424258803,-780.44,0.00025479,6]
[345685749,1734424258812,-1801.85,0.00025479,6]
[345685751,1734424258822,-1402.82,0.00025479,6]
[345685753,1734424258831,-500.0,0.00025479,6]
[345685755,1734424258840,-500.0,0.00025479,6]
[345685757,1734424258849,-542.8,0.00025479,6]
[345685759,1734424258858,-500.0,0.00025479,6]
[345685761,1734424258868,-500.0,0.00025479,6]
[345685763,1734424258878,-1166.17,0.00025479,6]
[345685765,1734424258887,-1240.63,0.00025479,6]
[345685767,1734424258897,-500.0,0.00025479,6]
[345685769,1734424258906,-1591.78,0.00025479,6]
[345685771,1734424258915,-500.0,0.00025479,6]
[345685773,1734424258925,-487.55440529,0.00025479,6]
[345685775,1734424258935,-2184.89,0.00025479,6]
[345685777,1734424258945,-500.0,0.00025479,6]
[345685779,1734424258955,-500.0,0.00025479,6]
[345685781,1734424258964,-887.08,0.00025479,6]
[345685783,1734424258974,-500.0,0.00025479,6]
[345685785,1734424258984,-513.4819649,0.00025479,6]
[345685787,1734424258993,-500.0,0.00025479,6]
[345685789,1734424259003,-954.46,0.00025479,6]
[345685792,1734424259012,-500.0,0.00025479,6]
[345685794,1734424259022,-1261.96,0.00025479,6]
[345685796,1734424259034,-991.36,0.00025479,6]
[345685798,1734424259044,-2550.14,0.00025479,6]
[345685800,1734424259053,-2831.55910407,0.000255,7]
[345685802,1734424259063,-541.74923036,0.00025521,2]
[345685803,1734424259074,-1000.0,0.00025521,2]
[345685805,1734424259084,-1000.0,0.00025521,2]
[345685807,1734424259093,-186.3,0.00025542,6]
[345685809,1734424259103,-500.0,0.00025556,6]
[345685811,1734424259112,-3790.95693877,0.00025562,2]
[345685813,1734424259121,-2666.35377587,0.00025613,120]
[345685815,1734424259131,-186.3,0.00025735,6]
[345685818,1734424259141,-305.3860437,0.00025753,6]
[345685820,1734424259150,-500.0,0.00025753,2]
[345685821,1734424259165,-500.0,0.00025753,6]
[345685823,1734424259174,-512.6731785,0.00025753,6]
[345685825,1734424259185,-500.0,0.00025753,6]
[345685828,1734424259196,-642.52,0.00025753,6]
[345685830,1734424259206,-500.0,0.00025753,6]
[345685832,1734424259216,-500.0,0.00025753,6]
[345685833,1734424259227,-535.38,0.00025753,6]
[345685835,1734424259237,-500.0,0.00025753,6]
[345685838,1734424259249,-500.0,0.00025753,6]
[345685839,1734424259260,-500.0,0.00025753,6]
[345685841,1734424259270,-500.0,0.00025753,6]
[345685843,1734424259280,-500.0,0.00025753,6]
[345685845,1734424259289,-500.0,0.00025753,6]
[345685847,1734424259300,-500.0,0.00025753,6]
[345685849,1734424259310,-500.0,0.00025753,6]
[345685851,1734424259319,-500.0,0.00025753,6]
[345685853,1734424259333,-879.48,0.00025753,6]
[345685855,1734424259343,-500.0,0.00025753,6]
[345685857,1734424259352,-500.0,0.00025753,6]
[345685859,1734424259361,-500.0,0.00025753,6]
[345685861,1734424259370,-507.45099456,0.00025753,6]
[345685863,1734424259379,-500.0,0.00025753,6]
[345685865,1734424259388,-286.17384162,0.00025753,6]
[345685867,1734424259398,-500.0,0.00025753,6]
[345685869,1734424259409,-500.0,0.00025753,6]
[345685871,1734424259419,-500.0,0.00025753,6]
[345685873,1734424259428,-500.0,0.00025753,6]
[345685875,1734424259438,-500.0,0.00025753,6]
[345685877,1734424259447,-500.0,0.00025753,6]
[345685879,1734424259457,-500.0,0.00025753,6]
[345685881,1734424259467,-500.0,0.00025753,6]
[345685883,1734424259476,-500.0,0.00025753,6]
[345685885,1734424259486,-500.0,0.00025753,6]
[345685887,1734424259496,-500.0,0.00025753,6]
[345685889,1734424259505,-500.0,0.00025753,6]
[345685891,1734424259515,-1214.35,0.00025753,6]
[345685893,1734424259524,-500.0,0.00025753,6]
[345685895,1734424259534,-500.0,0.00025753,6]
[345685897,1734424259544,-500.0,0.00025753,6]
[345685899,1734424259553,-282.62606732,0.00025753,6]
[345685901,1734424259562,-201.01900049,0.00025753,6]
[345685903,1734424259571,-500.0,0.00025753,6]
[345685905,1734424259580,-794.02,0.00025753,6]
[345685907,1734424259590,-500.0,0.00025753,6]
[345685909,1734424259599,-500.0,0.00025753,6]
[345685911,1734424259608,-500.0,0.00025753,6]
[345685913,1734424259617,-500.0,0.00025753,6]
[345685915,1734424259627,-711.23,0.00025753,6]
[345685917,1734424259636,-500.0,0.00025753,6]
[345685919,1734424259645,-500.0,0.00025753,6]
[345685921,1734424259654,-435.71119984,0.00025753,6]
[345685922,1734424259665,-513.77281094,0.00025753,6]
[345685924,1734424259675,-500.0,0.00025753,6]
[345685926,1734424259685,-844.97,0.00025753,6]
[345685929,1734424259694,-500.0,0.00025753,6]
[345685931,1734424259704,-500.0,0.00025753,6]
[345685932,1734424259713,-550.07549236,0.00025753,6]
[345685934,1734424259722,-519.5,0.00025753,6]
[345685936,1734424259732,-473.77298833,0.00025753,6]
[345685939,1734424259742,-500.0,0.00025753,6]
[345685940,1734424259752,-431.08718372,0.00025753,6]
[345685943,1734424259762,-500.0,0.00025753,6]
[345685945,1734424259771,-788.73,0.00025753,6]
[345685946,1734424259781,-500.0,0.00025753,6]
[345685948,1734424259791,-500.0,0.00025753,6]
[345685950,1734424259802,-500.0,0.00025753,6]
[345685952,1734424259812,-500.0,0.00025753,6]
[345685954,1734424259822,-627.92,0.00025753,6]
[345685956,1734424259832,-500.0,0.00025753,6]
[345685958,1734424259842,-500.0,0.00025753,6]
[345685960,1734424259851,-910.29,0.00025753,6]
[345685962,1734424259860,-500.0,0.00025753,6]
[345685964,1734424259870,-153.56095673,0.00025753,6]
[345685966,1734424259879,-774.98,0.00025753,6]
[345685968,1734424259889,-500.0,0.00025753,6]
[345685970,1734424259898,-380.18794095,0.00025753,6]
[345685972,1734424259909,-402.37627451,0.00025753,6]
[345685974,1734424259919,-500.0,0.00025753,6]
[345685976,1734424259927,-500.0,0.00025753,6]
[345685978,1734424259936,-1553.26,0.00025753,6]
[345685980,1734424259946,-500.0,0.00025753,6]
[345685982,1734424259955,-500.0,0.00025753,6]
[345685984,1734424259965,-500.0,0.00025753,6]
[345685986,1734424259975,-500.0,0.00025753,6]
[345685988,1734424259984,-500.0,0.00025753,6]
[345685991,1734424259994,-604.52,0.00025753,6]
[345685993,1734424260004,-987.23,0.00025753,6]
[345685995,1734424260014,-780.46,0.00025753,6]
[345685997,1734424260023,-718.59,0.00025753,6]
[345685998,1734424260033,-500.0,0.00025753,6]
[345686000,1734424260043,-500.0,0.00025753,6]
[345686002,1734424260053,-500.0,0.00025753,6]
[345686004,1734424260064,-500.0,0.00025753,6]
[345686006,1734424260074,-500.0,0.00025753,6]
[345686008,1734424260083,-500.0,0.00025753,6]
[345686010,1734424260093,-500.0,0.00025753,6]
[345686012,1734424260103,-500.0,0.00025753,6]
[345686014,1734424260113,-1293.26,0.00025753,6]
[345686016,1734424260122,-500.0,0.00025753,6]
[345686018,1734424260132,-500.0,0.00025753,6]
[345686020,1734424260141,-1910.85,0.00025753,6]
[345686022,1734424260151,-500.0,0.00025753,6]
[345686024,1734424260162,-500.0,0.00025753,6]
[345686026,1734424260171,-2573.33,0.00025753,6]
[345686028,1734424260180,-500.0,0.00025753,6]
[345686030,1734424260190,-500.0,0.00025753,6]
[345686032,1734424260199,-591.97,0.00025753,6]
[345686034,1734424260209,-500.0,0.00025753,6]
[345686036,1734424260218,-2286.48,0.00025753,6]
[345686038,1734424260228,-500.0,0.00025753,6]
[345686040,1734424260238,-500.0,0.00025753,6]
[345686042,1734424260248,-500.0,0.00025753,6]
[345686044,1734424260260,-500.0,0.00025753,6]
[345686046,1734424260269,-500.0,0.00025753,6]
[345686047,1734424260278,-493.31178635,0.00025753,6]
[345686049,1734424260288,-526.69,0.00025753,6]
[345686051,1734424260297,-903.29,0.00025753,6]
[345686053,1734424260307,-500.0,0.00025753,6]
[345686055,1734424260317,-500.0,0.00025753,6]
[345686058,1734424260327,-1649.3,0.00025753,2]
[345686060,1734424260336,-500.0,0.00025753,6]
[345686062,1734424260345,-500.0,0.00025753,6]
[345686064,1734424260355,-500.0,0.00025753,6]
[345686066,1734424260364,-712.81,0.00025753,6]
[345686067,1734424260374,-240.5475518,0.00025753,6]
[345686070,1734424260385,-500.0,0.00025753,6]
[345686072,1734424260394,-500.0,0.00025753,6]
[345686074,1734424260404,-500.0,0.00025753,6]
[345686076,1734424260416,-286.43,0.00025753,6]
[345686078,1734424260426,-500.0,0.00025753,6]
[345686080,1734424260435,-500.0,0.00025753,6]
[345686082,1734424260445,-500.0,0.00025753,6]
[345686084,1734424260454,-521.49,0.00025753,6]
[345686086,1734424260463,-677.86,0.00025753,6]
[345686088,1734424260473,-1715.94,0.00025753,6]
[345686090,1734424260484,-545.7,0.00025753,6]
[345686092,1734424260494,-500.0,0.00025753,6]
[345686094,1734424260503,-500.0,0.00025753,6]
[345686096,1734424260513,-500.0,0.00025753,6]
[345686098,1734424260523,-517.11,0.00025753,6]
[345686100,1734424260531,-3107.62,0.00025753,6]
[345686115,1734424260667,-500.0,0.00025753,6]
[345686118,1734424260678,-500.0,0.00025753,6]
[345686120,1734424260688,-500.0,0.00025753,6]
[345686122,1734424260698,-500.0,0.00025753,6]
[345686124,1734424260707,-500.0,0.00025753,6]
[345686126,1734424260716,-500.0,0.00025753,6]
[345686128,1734424260726,-500.0,0.00025753,6]
[345686130,1734424260736,-1887.89,0.00025753,6]
[345686132,1734424260745,-930.43,0.00025753,6]
[345686134,1734424260755,-500.0,0.00025753,6]
[345686136,1734424260764,-500.0,0.00025753,6]
[345686138,1734424260774,-1000.0,0.00025753,2]
[345686140,1734424260783,-500.0,0.00025753,6]
[345686142,1734424260793,-500.0,0.00025753,6]
[345686144,1734424260803,-500.0,0.00025753,6]
[345686146,1734424260813,-2642.26,0.00025753,6]
[345686148,1734424260823,-870.14,0.00025753,6]
[345686150,1734424260834,-1026.18,0.00025753,6]
[345686152,1734424260843,-648.52,0.00025753,6]
[345686154,1734424260853,-528.63849251,0.00025753,6]
[345686156,1734424260862,-649.44,0.00025753,2]
[345686158,1734424260872,-500.0,0.00025753,6]
[345686160,1734424260882,-500.0,0.00025753,6]
[345686162,1734424260891,-500.0,0.00025753,6]
[345686164,1734424260900,-500.0,0.00025753,6]
[345686166,1734424260912,-500.0,0.00025753,6]
[345686168,1734424260922,-2768.81,0.00025753,6]
[345686170,1734424260931,-6832.57,0.00025753,6]
[345686172,1734424260941,-500.0,0.00025753,6]
[345686174,1734424260950,-500.0,0.00025753,6]
[345686176,1734424260960,-1817.43,0.00025753,6]
[345686178,1734424260969,-500.0,0.00025753,6]
[345686180,1734424260979,-500.0,0.00025753,6]
[345686182,1734424260989,-7526.42,0.00025753,6]
[345686184,1734424260999,-500.0,0.00025753,6]
[345686186,1734424261008,-500.0,0.00025753,6]
[345686188,1734424261018,-794.02,0.00025753,6]
[345686190,1734424261028,-6481.57,0.00025753,6]
[345686192,1734424261038,-10373.72,0.00025753,6]
[345686195,1734424261047,-1239.75,0.00025753,6]
[345686196,1734424261057,-500.0,0.00025753,6]
[345686197,1734424261067,-1765.9,0.00025753,6]
[345686198,1734424261076,-1201.5,0.00025753,6]
[345686199,1734424261087,-783.27,0.00025753,6]
[345686200,1734424261097,-3000.0,0.00025753,30]
[345686201,1734424261107,-1019.66,0.00025753,6]
[345686202,1734424261118,-534.42,0.00025753,6]
[345686203,1734424261128,-1653.2,0.00025753,6]
[345686204,1734424261139,-1412.43,0.00025753,6]
[345686205,1734424261149,-500.0,0.00025753,6]
[345686207,1734424261162,-500.0,0.00025753,6]
[345686208,1734424261174,-1778.41,0.00025753,5]
[345686210,1734424261183,-500.0,0.00025753,6]
[345686212,1734424261192,-500.0,0.00025753,6]
[345686214,1734424261202,-500.0,0.00025753,6]
[345686215,1734424261211,-3387.78,0.00025753,6]
[345686218,1734424261221,-1002.59,0.00025753,6]
[345686220,1734424261231,-1704.13,0.00025753,6]
[345686221,1734424261239,-445.11193204,0.00025753,6]
[345686223,1734424261249,-500.0,0.00025753,6]
[345686225,1734424261260,-500.0,0.00025753,6]
[345686227,1734424261270,-500.0,0.00025753,6]
[345686229,1734424261279,-500.0,0.00025753,6]
[345686231,1734424261289,-33732.24,0.00025753,6]
[345686233,1734424261298,-3709.48,0.00025753,6]
[345686236,1734424261307,-500.0,0.00025753,6]
[345686238,1734424261317,-500.0,0.00025753,6]
[345686240,1734424261327,-500.0,0.00025753,6]
[345686242,1734424261336,-500.0,0.00025753,6]
[345686244,1734424261345,-500.0,0.00025753,6]
[345686246,1734424261354,-1705.57,0.00025753,6]
[345686248,1734424261364,-500.0,0.00025753,6]
[345686250,1734424261374,-500.0,0.00025753,6]
[345686252,1734424261383,-1836.6,0.00025753,6]
[345686254,1734424261392,-704.62,0.00025753,6]
[345686256,1734424261402,-979.48,0.00025753,6]
[345686258,1734424261414,-500.0,0.00025753,6]
[345686260,1734424261425,-481.98556131,0.00025753,6]
[345686262,1734424261434,-4330.72,0.00025753,6]
[345686264,1734424261443,-500.0,0.00025753,6]
[345686266,1734424261453,-610.85,0.00025753,6]
[345686268,1734424261462,-510.56202327,0.00025753,6]
[345686270,1734424261474,-500.0,0.00025753,6]
[345686272,1734424261484,-500.0,0.00025753,6]
[345686274,1734424261494,-2529.02,0.00025753,6]
[345686276,1734424261503,-500.0,0.00025753,6]
[345686278,1734424261512,-1079.08,0.00025753,6]
[345686280,1734424261522,-500.0,0.00025753,6]
[345686282,1734424261531,-500.0,0.00025753,6]
[345686284,1734424261540,-2543.43,0.00025753,6]
[345686286,1734424261550,-500.0,0.00025753,6]
[345686288,1734424261559,-530.48,0.00025753,6]
[345686290,1734424261568,-4978.04,0.00025753,6]
[345686292,1734424261578,-500.0,0.00025753,6]
[345686294,1734424261587,-500.0,0.00025753,6]
[345686296,1734424261597,-464.31154319,0.00025753,6]
[345686298,1734424261606,-500.0,0.00025753,6]
[345686300,1734424261616,-500.0,0.00025753,6]
[345686302,1734424261626,-500.0,0.00025753,6]
[345686304,1734424261636,-1782.0,0.00025753,6]
[345686306,1734424261645,-637.23,0.00025753,6]
[345686308,1734424261654,-500.0,0.00025753,6]
[345686310,1734424261669,-1595.65,0.00025753,6]
[345686312,1734424261683,-780.44,0.00025753,6]
[345686314,1734424261693,-1801.85,0.00025753,6]
[345686316,1734424261702,-1402.82,0.00025753,6]
[345686318,1734424261712,-500.0,0.00025753,6]
[345686320,1734424261721,-500.0,0.00025753,6]
[345686322,1734424261731,-542.8,0.00025753,6]
[345686325,1734424261740,-500.0,0.00025753,6]
[345686327,1734424261749,-500.0,0.00025753,6]
[345686329,1734424261759,-1166.17,0.00025753,6]
[345686331,1734424261768,-1240.63,0.00025753,6]
[345686332,1734424261778,-500.0,0.00025753,6]
[345686334,1734424261788,-1591.78,0.00025753,6]
[345686336,1734424261798,-500.0,0.00025753,6]
[345686338,1734424261807,-2184.89,0.00025753,6]
[345686340,1734424261816,-500.0,0.00025753,6]
[345686343,1734424261826,-500.0,0.00025753,6]
[345686345,1734424261835,-887.08,0.00025753,6]
[345686347,1734424261845,-500.0,0.00025753,6]
[345686349,1734424261854,-954.46,0.00025753,6]
[345686351,1734424261863,-500.0,0.00025753,6]
[345686353,1734424261872,-500.0,0.00025753,6]
[345686355,1734424261882,-1261.96,0.00025753,6]
[345686357,1734424261891,-991.36,0.00025753,6]
[345686359,1734424261901,-2550.14,0.00025753,6]
[345686361,1734424261915,-400.0,0.00025753,2]
[345686363,1734424261925,-500.0,0.0002583,6]
[345686365,1734424261935,-151.105,0.00025874,2]
[345686367,1734424261945,-151.312,0.00025874,2]
[345686369,1734424261953,-3790.95693877,0.00025928,2]
[345686371,1734424261963,-186.3,0.00025929,6]
[345686373,1734424261972,-13235.3486145,0.00026,20]
[345686375,1734424261981,-2003.68834441,0.00026,2]
[345686377,1734424261991,-7456.0,0.00026,2]
[345686379,1734424262001,-5660.0,0.00026,5]
[345686381,1734424262010,-3184.0,0.00026,5]
[345686383,1734424262020,-500.0,0.00026,120]
[345686385,1734424262029,-2710.14506787,0.00026,120]
[345686387,1734424262040,-500.0,0.00026,5]
[345686389,1734424262049,-1500.0,0.00026,7]
[345686391,1734424262059,-300.0,0.00026,12]
[345686393,1734424262069,-13252.8,0.00026,2]
[345686395,1734424262079,-42923.34,0.00026,60]
[345686397,1734424262088,-500.0,0.00026,9]
[345686399,1734424262097,-500.0,0.00026,9]
[345686401,1734424262107,-12533.01551839,0.00026016,2]
[345686403,1734424262116,-500.0,0.00026027,7]
[345686405,1734424262126,-500.0,0.00026027,7]
[345686407,1734424262135,-500.0,0.00026027,7]
[345686409,1734424262144,-500.0,0.00026027,7]
[345686411,1734424262153,-500.0,0.00026027,7]
[345686413,1734424262167,-500.0,0.00026027,7]
[345686415,1734424262176,-500.0,0.00026027,7]
[345686417,1734424262186,-500.0,0.00026027,7]
[345686419,1734424262196,-500.0,0.00026027,7]
[345686421,1734424262206,-500.0,0.00026027,7]
[345686423,1734424262216,-500.0,0.00026027,7]
[345686425,1734424262226,-500.0,0.00026027,7]
[345686427,1734424262235,-500.0,0.00026027,7]
[345686429,1734424262244,-500.0,0.00026027,7]
[345686431,1734424262257,-496.25153123,0.00026027,7]
[345686433,1734424262267,-500.0,0.00026027,2]
[345686435,1734424262277,-523.21858865,0.00026027,6]
[345686437,1734424262286,-508.42301285,0.00026027,6]
[345686439,1734424262296,-642.52,0.00026027,6]
[345686441,1734424262305,-500.0,0.00026027,6]
[345686443,1734424262314,-500.0,0.00026027,6]
[345686445,1734424262323,-535.38,0.00026027,6]
[345686447,1734424262332,-500.0,0.00026027,6]
[345686449,1734424262343,-500.0,0.00026027,6]
[345686451,1734424262352,-424.80684736,0.00026027,6]
[345686453,1734424262361,-500.0,0.00026027,6]
[345686455,1734424262370,-500.0,0.00026027,6]
[345686457,1734424262379,-500.0,0.00026027,6]
[345686459,1734424262389,-500.0,0.00026027,6]
[345686461,1734424262398,-500.0,0.00026027,6]
[345686463,1734424262410,-500.0,0.00026027,6]
[345686465,1734424262419,-879.48,0.00026027,6]
[345686467,1734424262428,-500.0,0.00026027,6]
[345686469,1734424262437,-500.0,0.00026027,6]
[345686471,1734424262446,-500.0,0.00026027,6]
[345686473,1734424262456,-500.0,0.00026027,6]
[345686475,1734424262465,-500.0,0.00026027,6]
[345686477,1734424262475,-552.49590287,0.00026027,6]
[345686479,1734424262484,-500.0,0.00026027,6]
[345686481,1734424262494,-500.0,0.00026027,6]
[345686483,1734424262503,-500.0,0.00026027,6]
[345686485,1734424262513,-500.0,0.00026027,6]
[345686487,1734424262522,-500.0,0.00026027,6]
[345686489,1734424262531,-500.0,0.00026027,6]
[345686491,1734424262541,-500.0,0.00026027,6]
[345686493,1734424262551,-500.0,0.00026027,6]
[345686495,1734424262560,-500.0,0.00026027,6]
[345686497,1734424262570,-500.0,0.00026027,6]
[345686499,1734424262580,-1214.35,0.00026027,6]
[345686501,1734424262589,-500.0,0.00026027,6]
[345686503,1734424262598,-500.0,0.00026027,6]
[345686506,1734424262608,-500.0,0.00026027,6]
[345686508,1734424262617,-500.0,0.00026027,6]
[345686509,1734424262626,-794.02,0.00026027,6]
[345686511,1734424262636,-500.0,0.00026027,6]
[345686514,1734424262645,-511.12688271,0.00026027,6]
[345686516,1734424262655,-500.0,0.00026027,6]
[345686518,1734424262667,-500.0,0.00026027,6]
[345686520,1734424262676,-711.23,0.00026027,6]
[345686522,1734424262688,-566.04679513,0.00026027,6]
[345686524,1734424262697,-263.9056243,0.00026027,6]
[345686526,1734424262706,-500.0,0.00026027,6]
[345686528,1734424262723,-844.97,0.00026027,6]
[345686530,1734424262733,-504.22648451,0.00026027,6]
[345686532,1734424262744,-500.0,0.00026027,6]
[345686534,1734424262754,-500.0,0.00026027,6]
[345686536,1734424262763,-500.0,0.00026027,6]
[345686538,1734424262773,-788.73,0.00026027,6]
[345686540,1734424262784,-500.0,0.00026027,6]
[345686542,1734424262794,-500.0,0.00026027,6]